Cogmind - Beta 15 @@@ ROGUE MODE // 2025.07.03 @ 21:28:56 Player: LameThyst Result: Destroyed by 5X-U41(R) with Subdweller Laser Performance ------------- Evolutions (0) 0 Regions Visited (2) 400 Robots Destroyed (20) 100 Value Destroyed (474) 474 Prototype IDs (2) 40 Alien Tech Used (0) 0 Bonus (0) 0 TOTAL SCORE: 1014 Bonus ------- None Cogmind --------- Core Integrity 0/250 Matter 270/300 Energy 194/200 System Corruption 0% Temperature Cool (6) Movement Rolling (117) Ox1 Location -10/Subcaves Parts ------- > --- POWER (1) -------- Subdweller Power Source > --- PROPULSION (2) --- Compact Wheel Subdweller Monowheel > --- UTILITY (2) ------ High-capacity Storage Unit Signal Interpreter > --- WEAPON (2) ------- Subdweller Beam Cannon Subdweller Machine Gun > --- INVENTORY (20) --- Ion Engine Subdweller Power Source Disposable Heat Sink Disposable Heat Sink Medium Storage Unit Structural Scanner Subdweller Optics Seismic Detector Subdweller Laser Autogun Battle Cannon Subdweller Shrapnel Launcher Datajack Peak State ------------ > --- POWER ------------ Subdweller Power Source > --- PROPULSION ------- Compact Wheel Subdweller Monowheel > --- UTILITY ---------- High-capacity Storage Unit Signal Interpreter > --- WEAPON ----------- Subdweller Beam Cannon Subdweller Machine Gun > --- INVENTORY -------- Ion Engine Subdweller Power Source Disposable Heat Sink Disposable Heat Sink Medium Storage Unit Structural Scanner Subdweller Optics Seismic Detector Subdweller Laser Autogun Battle Cannon Subdweller Shrapnel Launcher Datajack [Rating: 13] Favorites ----------- Power Ion Engine Engine Ion Engine Propulsion Aluminum Leg Leg Aluminum Leg Wheel Compact Wheel Utility Medium Storage Unit Device Seismic Detector Storage Medium Storage Unit Processor Signal Interpreter Weapon Autogun Energy Gun Small Laser Energy Cannon Beam Cannon Ballistic Gun Autogun Ballistic Cannon Battle Cannon Build | -11 -10 -10 ------- Run | Yrd Mat Sub Slots Evolved . | . . . Power . | . . . Propulsion . | . . . Utility . | . . . Weapon . | . . . Parts Attached 32 | 7 15 10 Power 7 | 1 3 3 Engine 7 | 1 3 3 Core . | . . . Reactor . | . . . Propulsion 8 | 2 4 2 Treads . | . . . Leg 6 | 2 4 . Wheel 2 | . . 2 Hover . | . . . Flight . | . . . Utility 6 | 2 3 1 Device 2 | 1 1 . Storage 3 | 1 1 1 Processor 1 | . 1 . Hackware . | . . . Protection . | . . . Artifact . | . . . Weapon 11 | 2 5 4 Energy Gun 1 | . 1 . Energy Cannon 2 | . . 2 Ballistic Gun 7 | 2 4 1 Ballistic Cannon 1 | . . 1 Launcher . | . . . Special Weapon . | . . . Impact Weapon . | . . . Slashing Weapon . | . . . Piercing Weapon . | . . . Special Melee Weapon . | . . . Unidentified Prototypes . | . . . Parts Lost 4 | . . 4 Power 1 | . . 1 Propulsion 3 | . . 3 Utility . | . . . Weapon . | . . . Highest Loss Streak 2 | . . 2 To Critical Strikes 1 | . . 1 Average Backups 9 | 4 9 10 Power . | . 1 . Propulsion 2 | 2 3 1 Utility 2 | . 2 4 Weapon 1 | . 1 2 Tool/Special . | . . . Unused Backups 14 | 1 7 6 Power 1 | . 1 . Propulsion 4 | 1 3 . Utility 5 | . 3 2 Weapon 3 | . . 3 Tool/Special 1 | . . 1 Average Slot Usage (%) 99 | . 100 99 Engine 14 | . 14 14 Leg 26 | . 28 23 Wheel 1 | . . 3 Device 8 | . 13 . Storage 14 | . 14 14 Processor 5 | . . 14 Energy Cannon 4 | . . 12 Ballistic Gun 18 | . 26 8 Ballistic Cannon 3 | . . 7 Peak Build Rating 13 | 7 10 13 Average Rating 8 | 5 8 9 On Entrance 5 | . 7 10 Naked Turns . | . . . Heaviest Build 57 | 12 22 57 Greatest Support 20 | 20 20 20 Greatest Overweight (x) 18 | . 1 18 Average Overweight (x) . | . . 1 Largest Inventory Capacity 20 | 8 10 20 Average Capacity 10 | 7 9 11 Most Carried 13 | 7 10 13 Average Carried 9 | 4 9 10 Final Capacity 20 | 8 10 20 Final Carried 13 | 7 10 13 Class Distribution -------------------- 91% | Mutant 8% | Scavenger-Mutant Dominant Class ---------------- Mutant | -10/Materials Mutant | -10/Subcaves Resources | -11 -10 -10 ----------- Run | Yrd Mat Sub Matter Collected 1042 | 286 424 332 Remotely . | . . . Salvage Created 622 | 107 274 241 Parts 45 | 5 23 17 Haulers Intercepted 1 | . 1 . Recyclers Shooed . | . . . Parts Field Recycled . | . . . Retrieved Matter . | . . . Parts Self-Destructed 15 | . . 15 Prevented . | . . . Kills | -11 -10 -10 ------- Run | Yrd Mat Sub Combat Hostiles Destroyed 17 | . 8 9 Guns 11 | . 8 3 Cannons 5 | . . 5 Classes Destroyed 6 | 2 3 1 Tunneler 1 | 1 . . Hauler 1 | . 1 . Recycler 1 | 1 . . Swarmer 7 | . 4 3 Grunt 4 | . 4 . Subdweller 6 | . . 6 Best Kill Streak 5 | 2 5 3 Combat Bots Only 3 | . 2 3 Max Kills in Single Turn 1 | 1 1 1 Gunslinging . | . . . Exploded . | . . . Melee . | . . . Uniques/NPCs Destroyed . | . . . Combat | -11 -10 -10 -------- Run | Yrd Mat Sub Hostile Shots Fired 125 | . 64 61 Missed 31 | . 16 15 Hits 94 | . 48 46 Projectile 94 | . 48 46 AOE 4 | . . 4 Critical Strikes 5 | . 3 2 Damage Taken 1451 | . 550 901 Core 255 | . 79 176 Absorbed by Shields . | . . . Regen/Repaired (Parts) 69 | . 69 . Core Remaining (%) 100 | 100 . . Volleys Fired 101 | 4 50 47 Largest 2 | 2 2 2 Hottest 113 | 40 60 113 Shots Fired 202 | 8 100 94 Gun 145 | 8 100 37 Cannon 57 | . . 57 Launcher . | . . . Special . | . . . Kinetic 165 | 8 97 60 Thermal 37 | . 3 34 Explosive . | . . . Electromagnetic . | . . . Robot Hit Streak 7 | 6 7 7 Robot Miss Streak 5 | . 5 3 Penetration Max . | . . . Secondary Targets 2 | . . 2 Max Gunslinging Chain 1 | . . 1 Shots Hit Robots 92 | 6 51 35 Core Hits 32 | 3 17 12 Critical Kills 1 | . . 1 Critical Parts Destroyed . | . . . Critical Strikes 1 | . . 1 Meltdown 1 | . . 1 Melee Attacks . | . . . Impact . | . . . Slashing . | . . . Piercing . | . . . Sneak Attacks . | . . . Combat Hostiles . | . . . Follow-up Attacks . | . . . Damage Inflicted 1340 | 65 551 724 Guns 850 | 65 551 234 Cannons 490 | . . 490 Explosions . | . . . Melee . | . . . Ramming . | . . . Kinetic 972 | 65 540 367 Thermal 368 | . 11 357 Explosive . | . . . Electromagnetic . | . . . Impact . | . . . Slashing . | . . . Piercing . | . . . Highest Corruption . | . . . Average Corruption . | . . . Corruption Purged . | . . . Corruption Blocked . | . . . Overload Shots . | . . . Overflow Damage . | . . . Projectiles . | . . . Explosions . | . . . Melee . | . . . Knockbacks 2 | . . 2 Impact . | . . . Kinetic 2 | . . 2 Secondary . | . . . Self-Inflicted Damage . | . . . Shots . | . . . Rammed . | . . . Targets Rammed . | . . . Kicked . | . . . Crushed . | . . . Highest Temperature 43 | . 43 3 Average Temperature 11 | . 12 2 Received Heat Transfer 372 | . 270 102 Siege Activations . | . . . Martial Activations . | . . . Shielding Activations . | . . . Robots Disrupted . | . . . Combat Hostiles . | . . . Robots Corrupted . | . . . Combat Hostiles . | . . . Parts Fried . | . . . Impact Corruptions . | . . . Robots Melted 1 | . . 1 Combat Hostiles 1 | . . 1 Parts Melted . | . . . Heat Transferred 543 | . 25 518 Parts Sabotaged . | . . . Parts Stolen . | . . . Parts Stripped . | . . . Power Chain Reactions . | . . . Alert | -11 -10 -10 ------- Run | Yrd Mat Sub Maximum Alert Level . | . . . Low Security (%) 100 | 100 100 . Level 1 . | . . . Level 2 . | . . . Level 3 . | . . . Level 4 . | . . . Level 5 . | . . . High Security . | . . . Max Security . | . . . Peak Influence 146 | 5 146 . Initial . | . . . Average 32 | . 36 . Influence Increases 390 | 10 310 70 Destroy 0b10 Robot/C 220 | . 160 60 Destroy 0b10 Robot/NC 15 | 10 5 . Destroy Leader 52 | . 42 10 Successful Hack 27 | . 27 . Destroy Structure 1 | . 1 . Lose Combat Pursuer 75 | . 75 . Influence Decreases 390 | 10 246 134 Entered New Map 32 | . . 32 Time Decay 358 | 10 246 102 Squads Dispatched 2 | . 2 . Investigation 1 | . 1 . Extermination . | . . . Reinforcement 1 | . 1 . Assault . | . . . Garrison . | . . . Intercept . | . . . Searches Triggered . | . . . Construction Impeded . | . . . Haulers Reinforced . | . . . Active Scanning Responses . | . . . Cargo Convoy Interrupts . | . . . Stealth | -11 -10 -10 --------- Run | Yrd Mat Sub Distress Signals 2 | . 2 . Communications Jammed . | . . . Distress Signals . | . . . Times Spotted 32 | . 21 11 Peak Tracking Total 4 | . 4 4 Tactical Retreats 3 | . 3 . Traps | -11 -10 -10 ------- Run | Yrd Mat Sub Traps Triggered 1 | . 1 . Indirectly . | . . . Trap Hack Attempts . | . . . Triggered . | . . . Disarmed . | . . . Reprogrammed . | . . . Reused . | . . . Traps Extracted . | . . . Installed . | . . . Triggered . | . . . Machines | -11 -10 -10 ---------- Run | Yrd Mat Sub Machines Disabled . | . . . Max in Single Turn . | . . . Machines Repaired . | . . . Machines Dismantled . | . . . Machines Sabotaged . | . . . Overloaded Fab Kills . | . . . Hacking | -11 -10 -10 --------- Run | Yrd Mat Sub Machines Accessed 7 | . 7 . Terminals 5 | . 5 . Fabricators . | . . . Repair Stations 1 | . 1 . Recycling Units 1 | . 1 . Scanalyzers . | . . . Garrison Access . | . . . Total Hacks 25 | . 25 . Successful 9 | . 9 . Failed 16 | . 16 . Catastrophic 2 | . 2 . Database Lockouts . | . . . Manual 6 | . 6 . Terminals 15 | . 15 . Fabricators . | . . . Repair Stations 8 | . 8 . Recycling Units 2 | . 2 . Scanalyzers . | . . . Garrison Access . | . . . Terminal Hacks 3 | . 3 . Robot Analysis 1 | . 1 . Prototype ID Bank 1 | . 1 . Locate Traps 1 | . 1 . Fabricator Hacks . | . . . Repair Station Hacks 5 | . 5 . Scan Component 3 | . 3 . Repair 2 | . 2 . Recycling Unit Hacks 1 | . 1 . Retrieve Components 1 | . 1 . Scanalyzer . | . . . Garrison Access Hacks . | . . . Unauthorized Hacks . | . . . Terminals . | . . . Fabricators . | . . . Repair Stations . | . . . Recycling Units . | . . . Scanalyzers . | . . . Garrison Access . | . . . Data Cores Recovered . | . . . Used . | . . . Hacking Detections 7 | . 7 . Full Trace Events . | . . . Feedback Events . | . . . Feedback Blocked . | . . . Robot Schematics Acquired . | . . . Robots Built . | . . . Authchips . | . . . Time . | . . . Total Robot Build Rating . | . . . Part Schematics Acquired . | . . . Parts Built . | . . . Authchips . | . . . Time . | . . . Total Part Build Rating . | . . . Parts Repaired 2 | . 2 . Time 52 | . 52 . Parts Recycled . | . . . Recycled Matter . | . . . Retrieved Matter . | . . . Retrieved Components 2 | . 2 . Parts Scanalyzed . | . . . Part Schematics Acquired . | . . . Parts Damaged . | . . . Bothacking | -11 -10 -10 ------------ Run | Yrd Mat Sub Used RIF Installer . | . . . Robots Hacked . | . . . Non-combat . | . . . Combat . | . . . Robot Hacks Applied . | . . . Relay Couplers Released . | . . . Fabnet Peak Effective % . | . . . Robots Rewired . | . . . Allies Hacked . | . . . Hacks Repelled . | . . . Allies | -11 -10 -10 -------- Run | Yrd Mat Sub Total Allies . | . . . Largest Group . | . . . Highest-Rated Group . | . . . Highest-Rated Ally . | . . . Total Orders . | . . . Ally Attacks . | . . . Total Damage . | . . . Kills . | . . . Allies Corrupted . | . . . Allies Melted . | . . . Intel | -11 -10 -10 ------- Run | Yrd Mat Sub Active Infowar (turns) 1217 | 54 1163 . Structural 244 | . 244 . Seismic 973 | 54 919 . Robot Analysis Total 1 | . 1 . Derelict Logs Recovered . | . . . Drone Launches . | . . . Drone Recoveries . | . . . Exploration | -11 -10 -10 ------------- Run | Yrd Mat Sub Turns Passed 2132 | 135 1165 832 Spaces Moved 972 | 91 524 357 Core 6 | 5 . 1 Treads . | . . . Legs 873 | 86 524 263 Wheels 93 | . . 93 Hover . | . . . Flight . | . . . Fastest Speed 50 | 50 120 115 Average Speed 159 | 116 153 178 Slowest Speed 950 | 120 190 950 Overloaded Moves . | . . . Propulsion Burnouts . | . . . Robots Hopped . | . . . Potential Cave-ins . | . . . Cave-ins Triggered . | . . . Exploration Rate (%) 39 | 4 77 37 Regions Visited 2 Branch Regions 1 Pre-discovered Areas 1 | . . 1 Known Exits Taken 1 | . 1 . Unknown Exits Taken 1 | 1 . . Scrap Searched . | . . . Spaces Dug . | . . . Terrain Destroyed 4 | . . 4 Melee . | . . . Projectile 4 | . . 4 AOE . | . . . Terrain Rammed . | . . . Walls Destroyed . | . . . Machines Disabled . | . . . Actions | -11 -10 -10 --------- Run | Yrd Mat Sub Total 1372 | 110 800 462 Wait 195 | . 171 24 Move 970 | 90 523 357 Hop . | . . . Pick Up 34 | 8 15 11 Fast Attach 10 | 7 1 2 Attach 3 | . . 3 Detach . | . . . Swap 29 | . 20 9 Drop 30 | 1 20 9 Fire 101 | 4 50 47 Melee . | . . . Ram . | . . . Kick . | . . . Crush . | . . . Escape Stasis . | . . . Rewire . | . . . Trap . | . . . Miscellaneous . | . . . Route ------- -11/Scrapyard -10/Materials (discovered 4 exits: [*Mat x3] / *Sub) -10/Subcaves History --------- Turn | Location | Event 4 | -11/Scrapyard | Discovered new exit (range 16) 136 | -11/Scrapyard | Entered Materials 316 | -10/Materials | Build established: Mutant 345 | -10/Materials | Discovered new exit (range 11) 598 | -10/Materials | Discovered new exit (range 6) 650 | -10/Materials | Discovered new exit (range 15) 836 | -10/Materials | Derelicts attacked the area 1108 | -10/Materials | Repaired Seismic Detector 1135 | -10/Materials | Repaired Aluminum Leg 1242 | -10/Materials | Discovered new exit (range 10) 1300 | -10/Materials | Identified exit to Subcaves 1301 | -10/Materials | Entered Subcaves 1323 | -10/Subcaves | Learned location of Zion (-7) 1323 | -10/Subcaves | Met a Zionite searching for "candidates" 1410 | -10/Subcaves | Shifting Twisted Machinery released Sub. Beam Cannon 1452 | -10/Subcaves | Shifting Twisted Machinery released Lgt. Humpback 1482 | -10/Subcaves | Shifting Twisted Machinery released Battle Cannon 1600 | -10/Subcaves | Core integrity fell below 50% 1735 | -10/Subcaves | Shifting Twisted Machinery released Flamer 1741 | -10/Subcaves | Shifting Twisted Machinery released Sub. Beam Cannon 1914 | -10/Subcaves | Core integrity fell below 20% 2133 | -10/Subcaves | Destroyed by 5X-U41(R) with Subdweller Laser Last Messages --------------- 01961_ JY-MJX(R) knocked back. 01966_ JY-MJX(R) affixes Scrap Shield Fragment to Scrap Shield. 01970_ JY-MJX(R) destroyed. 01972_ Subatomizers dissect the Sub. Machine Gun. 01976_ Dropped Battle Cannon. 01977_ Acquired Sub. Machine Gun. 01981_ Acquired Battle Cannon. 01983_ Acquired 1 matter. 01988_ Acquired 28 matter. 01991_ Acquired Sub. Optics. 02092_ Aluminum Leg destroyed. 02103_ Critical hit (Destroy). 02103_ Aluminum Leg destroyed. 02104_ RH-749(R) suffers critical hit (Meltdown). 02125_ Acquired 27 matter. 02128_ Acquired Disposable Heat Sink. 02130_ Acquired Sub. Monowheel. Map ----- +----------------------------------------------------+ | ???????????????????????????????????????????? | | ???????????????????????????????????????????? | | ???????????????????????????????????????????? | | ???????????????????????????????????????????? | | ???????????????????????????????????????????? | | ???????????????????????????????????????????? | | ???????????????????????????????????????????? | | ???????????????????????????????????????????? | | ???????????????????????????????????????????? | | ???????????????????????? ###???????????????? | | ???????????????????????? ???????????????? | | ???????????????????????? #??????????????? | | ???????????????????????? #??????????????? | | ????????????????????????# #??????????????? | | ???????????????# ???????# #??????????????? | | ???????????????# ?????## ##?????????????? | | ????????????????# ##???# #?????????????? | | ????????????????# #?## #?????????????? | | ????????????????# ## ??????????????? | | ????????????????# ??????????????? | | ?????????????????# #??????????????? | | ??????????????????# #??????????????? | | ??????????????????# #??????????????? | | ??????????????##### #??????????????? | | ??????????? ## #??????????????? | | ?????????? @ ###?????????????? | | ??????????????#### #"#?????????????? | | ???????????????### ;#?????????????? | | ?????????????# ###R ##?????????????? | | ?????????? ### #### #?????????????? | | ?????????????????# # #?????????????? | | ?????????????????# ##?????????????? | | ?????????????????# #?????????????? | | ?????????????????# # ## ##?????????????? | | ?????????????????####?#### ##?????????????? | | ????????????????????????# #?????????????? | | ??????????????????????### #?????????????? | | ?????????????????###??# ##?????????????? | | ?????????????????#" ##" ##??????????????? | | ???????????????????# ##???????????????? | | ???????????????????##"#" #????????????????? | | ????????????????????### ##???????????????? | | ?????????????????????# ##??????????????? | | ?????????????????????#### #??????????????? | | ???????????????????????# ##??????????????? | | ???????????????????????# ##??????????????? | | ???????????????????????## #??????????????? | | ???????????????????????# ##??????????????? | | ???????????????????????## ##??????????????? | | ???????????????????????## #??????????????? | +----------------------------------------------------+ Best States ------------- Heat Dissipation 25 Energy Generation 15 Energy Capacity 250 Matter Stores 300 Matter Capacity 300 Sight Range 16 Terrain Scan Density 10 Evasion (%) 55 Item Schematics ----------------- None Robot Schematics ------------------ None Fabricated ------------ Nothing Repaired ---------- Seismic Detector | 25% | -10/Materials Aluminum Leg | 40% | -10/Materials Alien Tech Used ----------------- None Achievements -------------- None Challenges ------------ None Game ------ Seed LightpackCoreProcessor Manual? 0 Play Time 00:24:30 Cumulative 52.1 hours Start 2025.07.03 @ 21:05:42 End 2025.07.03 @ 21:28:56 Sessions 1 Manual Loads 0 Difficulty Rogue Special Mode None Game No. 60 Rogue 60 Adventurer 0 Explorer 0 Win Type - Total 0 Types 0/0/0/0/0/0/0/0/0/0 Lore% 20 Gallery% 35 Achievement% 28 Wizard Run 0 Options --------- Layout 1 ASCII 0 Keyboard 0 Movement Mouse Keybinds 0 Fullscreen 2 Font 48/Smallcaps Map View 50x35 Zoom Use 0% Tactical HUD 1 Map Filters NONE Filters NONE Steam 0 RUN: 578e5d34-7e06-4e38-a0ef-844ea7e30d59